bitfinex/quotes_BTCUSD_20250901
["timestamp","ask_amount","ask_price","bid_price","bid_amount"]
[1756767028822,0.35227,108460.0,108450.0,0.50581682]
[1756767029482,0.3502,108460.0,108450.0,0.50581682]
[1756767030440,0.3502,108460.0,108450.0,0.34541682]
[1756767030692,0.3502,108460.0,108450.0,0.50581682]
[1756767032312,0.3502,108460.0,108450.0,1.43459058]
[1756767032565,0.0002,108470.0,108460.0,0.81878665]
[1756767032796,0.31033038,108470.0,108460.0,1.22731146]
[1756767033247,0.31033038,108470.0,108460.0,0.96276158]
[1756767033471,0.31033038,108470.0,108460.0,1.41754846]
[1756767033689,0.31033038,108470.0,108460.0,1.12316158]
[1756767033884,0.31033038,108470.0,108460.0,1.41754846]
[1756767035062,0.31033038,108470.0,108460.0,1.42354846]
[1756767035742,0.31033038,108470.0,108460.0,1.42854846]
[1756767036205,0.31033038,108470.0,108460.0,1.42850846]
[1756767036694,0.31033038,108470.0,108460.0,1.13412158]
[1756767036924,0.31228038,108470.0,108460.0,1.13093158]
[1756767037149,0.31033038,108470.0,108460.0,0.97358158]
[1756767037364,0.31033038,108470.0,108460.0,1.13434158]
[1756767037578,0.31228038,108470.0,108460.0,1.12920158]
[1756767037796,0.31228038,108470.0,108460.0,1.13125158]
[1756767038017,0.31228038,108470.0,108460.0,1.13426158]
[1756767038233,0.31033038,108470.0,108460.0,1.12826158]
[1756767038475,0.31033038,108470.0,108460.0,0.97250158]
[1756767038690,0.31033038,108470.0,108460.0,1.12822158]
[1756767038911,0.31033038,108470.0,108460.0,1.12722158]
[1756767039342,0.31033038,108470.0,108460.0,1.13222158]
[1756767042169,0.31228038,108470.0,108460.0,0.97150158]
[1756767042450,0.31228038,108470.0,108460.0,1.12905158]
[1756767042957,0.31228038,108470.0,108460.0,1.13206158]
[1756767043204,0.31228038,108470.0,108460.0,0.97150158]
[1756767043430,0.60973726,108470.0,108460.0,0.60550276]
[1756767043651,0.60973726,108470.0,108460.0,0.73827576]
[1756767044131,0.60973726,108470.0,108460.0,0.75921458]
[1756767044575,0.60973726,108470.0,108460.0,0.59373458]
[1756767044822,0.60973726,108470.0,108460.0,0.51167576]
[1756767045069,0.60973726,108470.0,108460.0,0.51467576]
[1756767045499,0.60973726,108470.0,108460.0,0.51067576]
[1756767045941,0.60973726,108470.0,108460.0,0.51167576]
[1756767046815,0.31535038,108470.0,108460.0,0.51167576]
[1756767047032,0.60973726,108470.0,108460.0,0.51167576]
[1756767047249,0.31228038,108470.0,108460.0,0.53466458]
[1756767047479,0.31033038,108470.0,108460.0,0.53767458]
[1756767047701,0.31228038,108470.0,108460.0,0.53767458]
[1756767048622,0.31033038,108470.0,108460.0,0.53767458]
[1756767052123,0.31228038,108470.0,108460.0,0.37719458]
[1756767052575,0.60666726,108470.0,108460.0,0.53249458]
[1756767053252,0.60666726,108470.0,108460.0,0.37213458]
[1756767053467,0.31228038,108470.0,108460.0,0.56225658]
[1756767054142,0.31228038,108470.0,108460.0,0.56020658]
[1756767054574,0.31228038,108470.0,108460.0,0.56225658]
[1756767055022,0.31033038,108470.0,108460.0,0.56526658]
[1756767055955,0.31228038,108470.0,108460.0,0.56526658]
[1756767058001,0.31228038,108470.0,108460.0,0.40189658]
[1756767058218,0.31228038,108470.0,108460.0,0.56225658]
[1756767058871,0.31228038,108470.0,108460.0,0.40490658]
[1756767059090,0.31228038,108470.0,108460.0,0.56526658]
[1756767059960,0.31228038,108470.0,108460.0,0.37719458]
[1756767060189,0.31228038,108470.0,108460.0,0.56526558]
[1756767060613,0.31228038,108470.0,108460.0,0.40490558]
[1756767060838,0.31228038,108470.0,108460.0,0.56225558]
[1756767061273,0.31228038,108470.0,108460.0,0.40189558]
[1756767061487,0.31228038,108470.0,108460.0,0.56526558]
[1756767062588,0.60666726,108470.0,108460.0,0.39984558]
[1756767062813,0.60973726,108470.0,108460.0,0.53245458]
[1756767063040,0.60973726,108470.0,108460.0,0.51151576]
[1756767063265,0.79412003,108470.0,108460.0,0.51151576]
[1756767065317,0.79412003,108470.0,108460.0,0.2352]
[1756767065561,0.88603602,108470.0,108460.0,0.07488]
[1756767065787,0.79412003,108470.0,108460.0,0.2352]
[1756767066074,0.79412003,108470.0,108460.0,0.2322]
[1756767066326,0.79412003,108470.0,108460.0,0.2332]
[1756767066547,0.79412003,108470.0,108460.0,0.07288]
[1756767066761,0.79412003,108470.0,108460.0,0.2332]
[1756767068469,0.79412003,108470.0,108460.0,0.41759977]
[1756767068699,0.31535038,108470.0,108460.0,0.41759977]
[1756767068924,0.79412003,108470.0,108460.0,0.41759977]
[1756767069141,0.60973726,108470.0,108460.0,0.41759977]
[1756767069376,0.79412003,108470.0,108460.0,0.41759977]
[1756767070498,0.49973315,108470.0,108460.0,0.41759977]
[1756767070760,0.60973726,108470.0,108460.0,0.41759977]
[1756767070999,0.60666726,108470.0,108460.0,0.51462576]
[1756767072680,0.60666726,108470.0,108460.0,0.51165576]
[1756767073590,0.60666726,108470.0,108460.0,0.34919576]
[1756767073803,0.79423003,108470.0,108460.0,0.50951576]
[1756767074427,0.60666726,108470.0,108460.0,0.50951576]
[1756767074635,0.79105003,108470.0,108460.0,0.50951576]
[1756767075281,0.60666726,108470.0,108460.0,0.51462576]
[1756767075695,0.60666726,108470.0,108460.0,0.51165576]
[1756767075856,0.60666726,108470.0,108460.0,0.50951576]
[1756767076070,0.79105003,108470.0,108460.0,0.34919576]
[1756767076281,0.79105003,108470.0,108460.0,0.50951576]
[1756767077857,0.60666726,108470.0,108460.0,0.50951576]
[1756767078719,0.60666726,108470.0,108460.0,0.51165576]
[1756767079155,0.60666726,108470.0,108460.0,0.51462576]
[1756767079358,0.60471726,108470.0,108460.0,0.51462576]
[1756767082100,0.31033038,108470.0,108460.0,0.51462576]
[1756767082331,0.31033038,108470.0,108460.0,0.53556458]
[1756767084803,0.31033038,108470.0,108460.0,0.53552458]
[1756767086447,0.31033038,108470.0,108460.0,0.56323658]
[1756767088856,0.31236038,108470.0,108460.0,0.39784658]
[1756767089057,0.60674726,108470.0,108460.0,0.55808658]
[1756767089258,0.60674726,108470.0,108460.0,0.53037458]
[1756767089479,0.60992726,108470.0,108460.0,0.53037458]
[1756767090055,0.60674726,108470.0,108460.0,0.53037458]
[1756767091117,0.31033038,108470.0,108460.0,0.53548458]
[1756767091567,0.31033038,108470.0,108460.0,0.56319658]
[1756767091780,0.31014293,108470.0,108460.0,0.56319658]
[1756767096992,0.31014293,108470.0,108460.0,0.56315658]
[1756767102050,0.31014293,108470.0,108460.0,0.40295658]
[1756767102260,0.31014293,108470.0,108460.0,0.56311658]
[1756767102687,0.31014293,108470.0,108460.0,0.40295658]
[1756767102688,0.31210293,108470.0,108460.0,0.40295658]
[1756767102914,0.60957981,108470.0,108460.0,0.55800658]
[1756767103106,0.31210293,108470.0,108460.0,0.56013658]
[1756767104240,0.31210293,108470.0,108460.0,0.56328658]
[1756767104664,0.31014293,108470.0,108460.0,0.56328658]
[1756767106841,0.31014293,108470.0,108460.0,1.19767346]
[1756767107916,0.31014293,108470.0,108460.0,0.90328658]
[1756767108339,0.31014293,108470.0,108460.0,0.74312658]
[1756767108556,0.31014293,108470.0,108460.0,0.90324658]
[1756767109696,0.10460806,108470.0,108460.0,0.90324658]
[1756767109902,0.32013038,108470.0,108460.0,0.90324658]
[1756767110765,0.32013038,108470.0,108460.0,1.12476658]
[1756767110976,0.32013038,108470.0,108460.0,0.96464658]
[1756767111190,0.32013038,108470.0,108460.0,1.12476658]
[1756767111653,0.0002,108480.0,108470.0,0.18438277]
[1756767111889,0.0002,108480.0,108470.0,0.75489446]
[1756767111890,0.1102,108480.0,108470.0,0.75489446]
[1756767112105,0.3402,108480.0,108470.0,0.75702446]
[1756767112324,0.3402,108480.0,108470.0,0.78472846]
[1756767112541,0.3402,108480.0,108470.0,1.22790846]
[1756767112985,0.3402,108480.0,108470.0,1.39098846]
[1756767113251,0.3402,108480.0,108470.0,1.38798846]
[1756767113458,0.3402,108480.0,108470.0,1.12968846]
[1756767113643,0.3402,108480.0,108470.0,1.13368846]
[1756767114514,0.3402,108480.0,108470.0,0.97360846]
[1756767114726,0.3402,108480.0,108470.0,1.13368846]
[1756767115813,0.3402,108480.0,108470.0,0.97360846]
[1756767116028,0.3402,108480.0,108470.0,1.13368846]
[1756767117919,0.3402,108480.0,108470.0,0.97360846]
[1756767118131,0.3402,108480.0,108470.0,0.98274352]
[1756767118338,0.3402,108480.0,108470.0,1.14278352]
[1756767120439,0.34216,108480.0,108470.0,0.65828276]
[1756767120694,0.34525,108480.0,108470.0,0.65300276]
[1756767120940,0.3402,108480.0,108470.0,0.81832276]
[1756767121587,0.34216,108480.0,108470.0,0.83398158]
[1756767121795,0.34216,108480.0,108470.0,0.83611158]
[1756767122657,0.34525,108480.0,108470.0,0.83398158]
[1756767123107,0.34216,108480.0,108470.0,0.84540183]
[1756767124156,0.3402,108480.0,108470.0,0.84540183]
[1756767124372,0.3402,108480.0,108470.0,0.84855183]
[1756767125055,0.3402,108480.0,108470.0,1.14293871]
[1756767125490,0.3402,108480.0,108470.0,0.84855183]
[1756767125902,0.3402,108480.0,108470.0,0.84851183]
[1756767127408,0.00215,108490.0,108480.0,0.2053046]
[1756767127617,0.28508,108490.0,108480.0,0.45722059]
[1756767127825,0.2872,108490.0,108480.0,0.45722059]
[1756767128041,0.28427,108490.0,108480.0,0.48701859]
[1756767128794,0.28427,108490.0,108480.0,0.49401859]
[1756767129124,0.28427,108490.0,108480.0,0.49192859]
[1756767129383,0.28427,108490.0,108480.0,0.53646807]
[1756767130262,0.28215,108490.0,108480.0,0.53943807]
[1756767130473,0.28215,108490.0,108480.0,1.17382495]
[1756767131812,0.28215,108490.0,108480.0,1.01382495]
[1756767132024,0.28427,108490.0,108480.0,0.87939807]
[1756767132495,0.28215,108490.0,108480.0,0.87939807]
[1756767132712,0.28215,108490.0,108480.0,1.17378495]
[1756767132922,0.28215,108490.0,108480.0,1.01382495]
[1756767133139,0.28215,108490.0,108480.0,1.17378495]
[1756767133366,0.28427,108490.0,108480.0,0.87935807]
[1756767133584,0.28215,108490.0,108480.0,1.17374495]
[1756767134445,0.28215,108490.0,108480.0,0.87935807]
[1756767135105,0.28215,108490.0,108480.0,1.43704495]
[1756767136506,0.28427,108490.0,108480.0,0.98273807]
[1756767136713,0.28427,108490.0,108480.0,1.43704495]
[1756767136919,0.28215,108490.0,108480.0,1.43704495]
[1756767137373,0.28215,108490.0,108480.0,1.27712495]
[1756767137591,0.28215,108490.0,108480.0,1.43704495]
[1756767140341,0.28215,108490.0,108480.0,1.43700495]
[1756767140547,0.28215,108490.0,108480.0,1.436905]
[1756767141035,0.28215,108490.0,108480.0,1.173605]
[1756767142180,0.28427,108490.0,108480.0,1.170635]
[1756767142409,0.28427,108490.0,108480.0,1.173605]
[1756767142619,0.28215,108490.0,108480.0,0.87917812]
[1756767142867,0.28215,108490.0,108480.0,1.173565]
[1756767143077,0.28219709,108490.0,108480.0,1.173565]
[1756767146493,0.28431709,108490.0,108480.0,1.013725]
[1756767146700,0.28724709,108490.0,108480.0,0.87411812]
[1756767146912,0.28431709,108490.0,108480.0,0.87620812]
[1756767147353,0.28431709,108490.0,108480.0,0.87917812]
[1756767148473,0.28219709,108490.0,108480.0,1.173565]
[1756767153560,0.09287048,108490.0,108480.0,1.173565]
[1756767153941,0.34004709,108490.0,108480.0,1.173565]
[1756767158076,0.34004709,108490.0,108480.0,1.244445]
[1756767161441,0.34004709,108490.0,108480.0,1.244325]
[1756767162155,0.34004709,108490.0,108480.0,1.084605]
[1756767162376,0.34209709,108490.0,108480.0,1.244285]
[1756767162810,0.34209709,108490.0,108480.0,1.465765]
[1756767163750,0.34004709,108490.0,108480.0,1.465765]
[1756767164620,0.0002,108510.0,108500.0,0.20527061]
[1756767164835,0.31067101,108510.0,108500.0,0.75125348]
[1756767165060,0.31272101,108510.0,108500.0,0.75619348]
[1756767165279,0.31272101,108510.0,108500.0,0.78389448]
[1756767165519,0.31595101,108510.0,108500.0,0.4845676]
[1756767165950,0.31595101,108510.0,108500.0,0.4865676]
[1756767166813,0.31595101,108510.0,108500.0,0.4865276]
[1756767167289,0.31595101,108510.0,108500.0,0.3268876]
[1756767167500,0.31595101,108510.0,108500.0,0.4865276]
[1756767168149,0.31595101,108510.0,108500.0,0.3268876]
[1756767168394,0.31595101,108510.0,108500.0,0.4865276]
[1756767168606,0.31272101,108510.0,108500.0,0.4914676]
[1756767168826,0.31595101,108510.0,108500.0,0.4865276]
[1756767169273,0.31272101,108510.0,108500.0,0.4865276]
[1756767170350,0.31272101,108510.0,108500.0,0.4914676]
[1756767170569,0.31272101,108510.0,108500.0,0.4885076]
[1756767170793,0.31272101,108510.0,108500.0,0.4914676]
[1756767171002,0.31272101,108510.0,108500.0,0.78585448]
[1756767171214,0.31067101,108510.0,108500.0,0.78585448]
[1756767171645,0.31272101,108510.0,108500.0,0.4914676]
[1756767174013,0.31067101,108510.0,108500.0,0.4914676]
[1756767175825,0.31067101,108510.0,108500.0,0.3318276]
[1756767176032,0.31272101,108510.0,108500.0,0.4914276]
[1756767177101,0.31067101,108510.0,108500.0,0.4914276]
[1756767179728,0.31067101,108510.0,108500.0,0.5622676]
[1756767180497,0.31272101,108510.0,108500.0,0.5622276]
[1756767180895,0.31272101,108510.0,108500.0,0.4026676]
[1756767181123,0.31272101,108510.0,108500.0,0.5622276]
[1756767183865,0.29761688,108520.0,108510.0,0.20525362]
[1756767184069,0.35331679,108520.0,108510.0,0.29716961]
[1756767184248,0.35213679,108520.0,108510.0,0.29914961]
[1756767184449,0.35213679,108520.0,108510.0,0.30210961]
[1756767184667,0.35213679,108520.0,108510.0,0.32980861]
[1756767184890,0.35313679,108520.0,108510.0,0.32684861]
[1756767185175,0.35313679,108520.0,108510.0,0.32996861]
[1756767185406,0.35313679,108520.0,108510.0,0.48636861]
[1756767186043,0.34790679,108520.0,108510.0,0.49659068]
[1756767186244,0.35113679,108520.0,108510.0,0.48538861]
[1756767186446,0.34790679,108520.0,108510.0,0.48746861]
[1756767186588,0.35113679,108520.0,108510.0,0.48538861]
[1756767187248,0.34790679,108520.0,108510.0,0.48538861]
[1756767189157,0.34790679,108520.0,108510.0,0.52611657]
[1756767189614,0.34790679,108520.0,108510.0,0.53749524]
[1756767190953,0.34790679,108520.0,108510.0,0.54061524]
[1756767191171,0.34585679,108520.0,108510.0,0.54061524]
[1756767193442,0.34585679,108520.0,108510.0,0.83500212]
[1756767193663,0.34585679,108520.0,108510.0,1.43830212]
[1756767193936,0.34585679,108520.0,108510.0,1.43730212]
[1756767194150,0.34485679,108520.0,108510.0,1.43730212]
[1756767194358,0.34485679,108520.0,108510.0,1.43830212]
[1756767194589,0.34485679,108520.0,108510.0,1.44126212]
[1756767194807,0.34485679,108520.0,108510.0,1.28078212]
[1756767195017,0.34485679,108520.0,108510.0,1.44326212]
[1756767195868,0.34485679,108520.0,108510.0,1.44026212]
[1756767197850,0.34485679,108520.0,108510.0,1.44022212]
[1756767198498,0.34485679,108520.0,108510.0,1.28078212]
[1756767198731,0.34485679,108520.0,108510.0,1.44022212]
[1756767203915,0.34485679,108520.0,108510.0,1.46804083]
[1756767205033,0.34485679,108520.0,108510.0,1.44022212]
[1756767208518,0.34485679,108520.0,108510.0,1.44014212]
[1756767212060,0.34485679,108520.0,108510.0,1.28078212]
[1756767212271,0.34485679,108520.0,108510.0,1.44010212]
[1756767212488,0.34485679,108520.0,108510.0,1.28078212]
[1756767212743,0.64448367,108520.0,108510.0,1.11027775]
[1756767212956,0.35009679,108520.0,108510.0,1.11027775]
[1756767213168,0.35009679,108520.0,108510.0,1.13121657]
[1756767213392,0.34485679,108520.0,108510.0,1.44012495]
[1756767213617,0.34686679,108520.0,108510.0,1.43492495]
[1756767213844,0.34686679,108520.0,108510.0,0.98121807]
[1756767214061,0.35009679,108520.0,108510.0,1.14053807]
[1756767215328,0.35009679,108520.0,108510.0,0.87723807]
[1756767216684,0.35009679,108520.0,108510.0,0.86787657]
[1756767217322,0.34686679,108520.0,108510.0,0.86996657]
[1756767217535,0.34686679,108520.0,108510.0,0.87309657]
[1756767218608,0.34485679,108520.0,108510.0,1.17683283]
[1756767218860,0.34684679,108520.0,108510.0,1.17683283]
[1756767220286,0.34485679,108520.0,108510.0,1.17683283]
[1756767221068,0.34485679,108520.0,108510.0,1.44013283]
[1756767222140,0.34684679,108520.0,108510.0,1.28085283]
[1756767222309,0.34684679,108520.0,108510.0,1.44009283]
[1756767222510,0.34684679,108520.0,108510.0,1.14570595]
[1756767225408,0.34684679,108520.0,108510.0,0.98646595]
[1756767225609,0.34684679,108520.0,108510.0,1.14257595]
[1756767226020,0.34485679,108520.0,108510.0,1.14570595]
[1756767227057,0.34485679,108520.0,108510.0,0.88240595]
[1756767227391,0.34684679,108520.0,108510.0,1.17675283]
[1756767227918,0.34684679,108520.0,108510.0,0.88236595]
[1756767228638,0.34684679,108520.0,108510.0,1.17675283]
[1756767228855,0.34684679,108520.0,108510.0,0.88236595]
[1756767229077,0.34684679,108520.0,108510.0,0.87923595]
[1756767229632,0.34684679,108520.0,108510.0,0.72003595]
[1756767229851,0.34684679,108520.0,108510.0,0.87923595]
[1756767231063,0.34684679,108520.0,108510.0,0.88236595]
[1756767231278,0.34485679,108520.0,108510.0,0.88236595]
[1756767231874,0.34485679,108520.0,108510.0,1.17675283]
[1756767232511,0.34485679,108520.0,108510.0,1.24759283]
[1756767232724,0.34684679,108520.0,108510.0,1.24759283]
[1756767232864,0.34684679,108520.0,108510.0,0.95320595]
[1756767234137,0.34684679,108520.0,108510.0,0.95007595]
[1756767234972,0.34684679,108520.0,108510.0,0.95320595]
[1756767236387,0.34485679,108520.0,108510.0,0.95320595]
[1756767237429,0.34684679,108520.0,108510.0,0.95320595]
[1756767237631,0.34485679,108520.0,108510.0,0.95320595]
[1756767239290,0.34485679,108520.0,108510.0,0.95312595]
[1756767239943,0.34684679,108520.0,108510.0,0.79087595]
[1756767240163,0.34684679,108520.0,108510.0,1.24695359]
[1756767240407,0.93754207,108520.0,108510.0,0.77943657]
[1756767240632,0.93754207,108520.0,108510.0,0.57757775]
[1756767240855,0.93754207,108520.0,108510.0,0.59851657]
[1756767242000,0.93754207,108520.0,108510.0,0.60060657]
[1756767242001,0.34684679,108520.0,108510.0,0.60060657]
[1756767242224,0.34684679,108520.0,108510.0,0.59851657]
[1756767242225,0.64367443,108520.0,108510.0,0.59851657]
[1756767242883,0.93754207,108520.0,108510.0,0.59851657]
[1756767243351,0.64367443,108520.0,108510.0,0.43943657]
[1756767243597,0.93754207,108520.0,108510.0,0.59851657]
[1756767244001,0.64377898,108520.0,108510.0,0.59851657]
[1756767245981,0.64377898,108520.0,108510.0,0.43943657]
[1756767246195,0.64377898,108520.0,108510.0,0.59851657]
[1756767246811,0.64377898,108520.0,108510.0,0.43943657]
[1756767247022,0.64377898,108520.0,108510.0,0.59847657]
[1756767249465,0.34980679,108520.0,108510.0,0.59847657]
[1756767249709,0.64377898,108520.0,108510.0,0.59847657]
[1756767252364,0.64081898,108520.0,108510.0,0.59847657]
[1756767252574,0.64081898,108520.0,108510.0,0.60060657]
[1756767252775,0.64374898,108520.0,108510.0,0.59847657]
[1756767253484,0.64081898,108520.0,108510.0,0.59847657]
[1756767255762,0.64081898,108520.0,108510.0,0.60060657]
[1756767255970,0.34684679,108520.0,108510.0,0.60384657]
[1756767256200,0.64081898,108520.0,108510.0,0.60384657]
[1756767256425,0.34485679,108520.0,108510.0,0.60384657]
[1756767256662,0.34485679,108520.0,108510.0,0.89781876]
[1756767257798,0.34485679,108520.0,108510.0,0.60384657]
[1756767258469,0.34485679,108520.0,108510.0,0.89781876]
[1756767259098,0.34485679,108520.0,108510.0,1.23781876]
[1756767260135,0.34485679,108520.0,108510.0,0.94384657]
[1756767260348,0.34485679,108520.0,108510.0,1.07877876]
[1756767260579,0.34485679,108520.0,108510.0,1.23773876]
[1756767261885,0.34485679,108520.0,108510.0,0.94376657]
[1756767262132,0.34485679,108520.0,108510.0,1.23773876]
[1756767262820,0.34485679,108520.0,108510.0,1.50103876]
[1756767264918,0.34485679,108520.0,108510.0,1.34207876]
[1756767265118,0.34485679,108520.0,108510.0,1.04810657]
[1756767265322,0.34485679,108520.0,108510.0,1.04486657]
[1756767265323,0.34692679,108520.0,108510.0,1.04486657]
[1756767265526,0.64089898,108520.0,108510.0,1.18071775]
[1756767265733,0.64089898,108520.0,108510.0,1.20165657]
[1756767265734,0.34692679,108520.0,108510.0,1.20165657]
[1756767266569,0.34985679,108520.0,108510.0,1.20165657]
[1756767267321,0.34692679,108520.0,108510.0,1.20165657]
[1756767267874,0.34985679,108520.0,108510.0,1.20165657]
[1756767268258,0.34692679,108520.0,108510.0,1.20165657]
[1756767268683,0.34692679,108520.0,108510.0,0.93835657]
[1756767270092,0.34692679,108520.0,108510.0,0.94048657]
[1756767270885,0.34485679,108520.0,108510.0,0.94372657]
[1756767272850,0.34485679,108520.0,108510.0,1.23769876]
[1756767273484,0.34485679,108520.0,108510.0,0.94372657]
[1756767276907,0.34485679,108520.0,108510.0,0.94368657]
[1756767277103,0.34682679,108520.0,108510.0,0.94368657]
[1756767278049,0.34485679,108520.0,108510.0,0.94368657]
[1756767279632,0.34485679,108520.0,108510.0,0.94364657]
[1756767280948,0.34682679,108520.0,108510.0,0.94364657]
[1756767281199,0.34682679,108520.0,108510.0,0.94033657]
[1756767281414,0.34682679,108520.0,108510.0,0.94328657]
[1756767283144,0.35003679,108520.0,108510.0,0.77943657]
[1756767283397,0.35003679,108520.0,108510.0,0.93827657]
[1756767283609,0.35003679,108520.0,108510.0,0.77943657]
[1756767283820,0.35003679,108520.0,108510.0,0.93823657]
[1756767284440,0.64400898,108520.0,108510.0,0.43943657]
[1756767284652,0.64400898,108520.0,108510.0,0.59823657]
[1756767285954,0.35003679,108520.0,108510.0,0.59823657]
[1756767286160,0.1667444,108520.0,108510.0,0.59823657]
[1756767286580,0.34526679,108520.0,108510.0,0.59823657]
[1756767287242,0.63923898,108520.0,108510.0,0.43943657]
[1756767287453,0.34526679,108520.0,108510.0,0.59823657]
[1756767287665,0.63923898,108520.0,108510.0,0.59823657]
[1756767288490,0.63923898,108520.0,108510.0,0.43943657]
[1756767288696,0.63923898,108520.0,108510.0,0.59819657]
[1756767289595,0.63923898,108520.0,108510.0,0.43943657]
[1756767289803,0.63923898,108520.0,108510.0,0.59819657]
[1756767290653,0.64832822,108520.0,108510.0,0.43943657]
[1756767290864,0.64832822,108520.0,108510.0,0.59819657]
[1756767292045,0.64832822,108520.0,108510.0,0.43943657]
[1756767292272,0.64832822,108520.0,108510.0,0.59819657]
[1756767292476,0.34008679,108520.0,108510.0,0.60320657]
[1756767292706,0.34008679,108520.0,108510.0,0.89717876]
[1756767292848,0.34008679,108520.0,108510.0,1.23717876]
[1756767293052,0.34008679,108520.0,108510.0,1.53115095]
[1756767293574,0.34008679,108520.0,108510.0,1.23717876]
[1756767295402,0.34008679,108520.0,108510.0,1.50047876]
[1756767303642,0.01,108530.0,108520.0,0.83920883]
[1756767303866,0.32004705,108530.0,108520.0,1.09271482]
[1756767304122,0.32004705,108530.0,108520.0,1.09477482]
[1756767304349,0.32004705,108530.0,108520.0,1.12246782]
[1756767304969,0.32004705,108530.0,108520.0,0.82849563]
[1756767305182,0.32004705,108530.0,108520.0,1.12246782]
[1756767306268,0.32004705,108530.0,108520.0,1.12346782]
[1756767307363,0.32004705,108530.0,108520.0,1.38676782]
[1756767308532,0.32004705,108530.0,108520.0,0.67085563]
[1756767308752,0.32206705,108530.0,108520.0,0.82444563]
[1756767308969,0.32004705,108530.0,108520.0,0.82960563]
[1756767309187,0.32206705,108530.0,108520.0,1.12357782]
[1756767309408,0.0950822,108530.0,108520.0,1.18637782]
[1756767309612,0.34206705,108530.0,108520.0,1.34497782]
[1756767310114,0.34206705,108530.0,108520.0,1.18637782]
[1756767310332,0.34206705,108530.0,108520.0,1.34497782]
[1756767310762,0.34206705,108530.0,108520.0,1.18637782]
[1756767310961,0.34206705,108530.0,108520.0,1.34497782]
[1756767311877,0.34206705,108530.0,108520.0,1.34493782]
[1756767312363,0.34206705,108530.0,108520.0,1.34175782]
[1756767312582,0.34206705,108530.0,108520.0,1.34493782]
[1756767313190,0.34206705,108530.0,108520.0,1.60307782]
[1756767313437,0.34527705,108530.0,108520.0,1.60307782]
[1756767313870,0.34527705,108530.0,108520.0,1.30910563]
[1756767315120,0.34206705,108530.0,108520.0,1.30910563]
[1756767315449,0.34206705,108530.0,108520.0,1.31108563]
[1756767316130,0.34206705,108530.0,108520.0,1.31426563]
[1756767316769,0.34004705,108530.0,108520.0,1.31426563]
[1756767317062,0.34004705,108530.0,108520.0,1.15570563]
[1756767317190,0.34206705,108530.0,108520.0,1.31422563]
[1756767317599,0.34206705,108530.0,108520.0,1.60819782]
[1756767317817,0.34206705,108530.0,108520.0,1.31422563]
[1756767319181,0.34206705,108530.0,108520.0,1.05092563]
[1756767320674,0.34206705,108530.0,108520.0,1.34489782]
[1756767321107,0.34206705,108530.0,108520.0,1.05092563]
[1756767321334,0.34206705,108530.0,108520.0,1.34489782]
[1756767322039,0.34004705,108530.0,108520.0,1.34489782]
[1756767322248,0.34004705,108530.0,108520.0,1.34485782]
[1756767323760,0.34004705,108530.0,108520.0,1.18637782]
[1756767323954,0.34004705,108530.0,108520.0,1.34485782]
[1756767324913,0.34004705,108530.0,108520.0,1.18637782]
[1756767325111,0.34004705,108530.0,108520.0,1.34485782]
[1756767325311,0.34206705,108530.0,108520.0,1.34485782]
[1756767325896,0.34206705,108530.0,108520.0,1.18637782]
[1756767326279,0.34206705,108530.0,108520.0,1.34481782]
[1756767327428,0.34004705,108530.0,108520.0,1.34481782]
[1756767330349,0.34004705,108530.0,108520.0,1.05084563]
[1756767330500,0.34004705,108530.0,108520.0,1.34481782]
[1756767337014,0.34004705,108530.0,108520.0,1.60811782]
[1756767337651,0.00124917,108540.0,108530.0,0.18428084]
[1756767337873,0.01124917,108540.0,108530.0,1.35507135]
[1756767338102,0.34124917,108540.0,108530.0,1.35787784]
[1756767338563,0.34124917,108540.0,108530.0,1.36912684]
[1756767338976,0.34124917,108540.0,108530.0,0.91979465]
[1756767339186,0.34124917,108540.0,108530.0,1.37212684]
[1756767340074,0.34124917,108540.0,108530.0,1.10882684]
[1756767341028,0.34124917,108540.0,108530.0,1.10878684]
[1756767343954,0.34124917,108540.0,108530.0,0.95046684]
[1756767344173,0.34124917,108540.0,108530.0,1.10878684]
[1756767347440,0.34124917,108540.0,108530.0,0.95046684]
[1756767347631,0.34124917,108540.0,108530.0,1.10874684]
[1756767348887,0.34124917,108540.0,108530.0,1.37204684]
[1756767351240,1e-08,108540.0,108530.0,1.42204684]
[1756767351453,0.00323,108550.0,108540.0,0.54520268]
[1756767351656,0.35327705,108550.0,108540.0,1.16021086]
[1756767351862,0.35327705,108550.0,108540.0,1.16532086]
[1756767352093,0.35327705,108550.0,108540.0,1.19300686]
[1756767352738,0.35327705,108550.0,108540.0,1.23374016]
[1756767353135,0.35327705,108550.0,108540.0,1.23474016]
[1756767354962,0.35327705,108550.0,108540.0,1.23470016]
[1756767357717,0.35539705,108550.0,108540.0,1.07646016]
[1756767357919,0.35539705,108550.0,108540.0,1.23470016]
[1756767359136,0.35327705,108550.0,108540.0,1.23470016]
[1756767359558,0.35327705,108550.0,108540.0,1.23466016]
[1756767363140,0.35327705,108550.0,108540.0,0.94068797]
[1756767363404,0.35327705,108550.0,108540.0,1.23466016]
[1756767363648,0.0002,108560.0,108550.0,0.54518571]
[1756767363873,0.1902,108560.0,108550.0,1.08927389]
[1756767364120,0.1902,108560.0,108550.0,1.09438389]
[1756767364337,1e-08,108560.0,108550.0,1.43536689]
[1756767364557,0.125,108570.0,108560.0,0.54516873]
[1756767364764,0.45504705,108570.0,108560.0,1.08925691]
[1756767364975,0.45504705,108570.0,108560.0,1.09436691]
[1756767365155,0.45504705,108570.0,108560.0,0.96384791]
[1756767365395,0.45504705,108570.0,108560.0,1.12204791]
[1756767365924,0.45504705,108570.0,108560.0,1.12300791]
[1756767366333,0.45504705,108570.0,108560.0,1.1322338]
[1756767368391,0.45504705,108570.0,108560.0,1.3535938]
[1756767370974,0.0002,108580.0,108570.0,0.83902401]
[1756767371229,0.3402,108580.0,108570.0,1.15986]
[1756767371462,1e-08,108590.0,108580.0,0.5951348]
[1756767371673,1e-08,108590.0,108580.0,1.13914298]
[1756767371886,0.00215,108600.0,108590.0,0.83909003]
[1756767372104,0.35215,108600.0,108590.0,1.13912602]
[1756767372322,0.35215,108600.0,108590.0,0.98612602]
[1756767372551,0.35215,108600.0,108590.0,1.14424602]
[1756767372776,0.35215,108600.0,108590.0,0.98612602]
[1756767372993,0.35215,108600.0,108590.0,1.14424602]
[1756767373422,0.35215,108600.0,108590.0,1.14524602]
[1756767374680,0.35215,108600.0,108590.0,0.98712602]
[1756767374859,0.35215,108600.0,108590.0,1.01479602]
[1756767375004,0.35215,108600.0,108590.0,1.17287602]
[1756767375843,0.35215,108600.0,108590.0,0.67082383]
[1756767375844,0.35416,108600.0,108590.0,0.67082383]
[1756767376014,0.35416,108600.0,108590.0,1.16982602]
[1756767376222,0.35416,108600.0,108590.0,1.17287602]
[1756767376442,0.35215,108600.0,108590.0,1.17287602]
[1756767376860,0.35416,108600.0,108590.0,1.12287602]
[1756767377084,0.35416,108600.0,108590.0,0.96174602]
[1756767377241,0.35713,108600.0,108590.0,1.11775602]
[1756767377668,0.35416,108600.0,108590.0,1.11775602]